[Event "*** Titled Tuesday Blitz"]
[Site "Chess.com"]
[Date "2020.03.03"]
[Round "2"]
[White "ckgchess"]
[Black "Oleksandr_Bortnyk"]
[Result "1-0"]
[WhiteElo "2681"]
[BlackElo "2957"]
[TimeControl "180+1"]
[EndTime "9:17:41 PST"]
[Termination "ckgchess won on time"]

1. e4 {[%clk 0:03:00.8]} 1... Nf6 {[%clk 0:02:59.2]} 2. e5 {[%clk 0:03:00.5]}
2... Nd5 {[%clk 0:02:58.9]} 3. d4 {[%clk 0:03:00.4]} 3... d6 {[%clk 0:02:56.6]}
4. c4 {[%clk 0:03:00.8]} 4... Nb6 {[%clk 0:02:56.5]} 5. f4 {[%clk 0:03:01.6]}
5... dxe5 {[%clk 0:02:55.9]} 6. fxe5 {[%clk 0:03:02.5]} 6... Nc6 {[%clk
0:02:56.8]} 7. Be3 {[%clk 0:02:58.1]} 7... Bf5 {[%clk 0:02:57.3]} 8. Nc3 {[%clk
0:02:57.3]} 8... e6 {[%clk 0:02:57.9]} 9. Nf3 {[%clk 0:02:56.9]} 9... Bb4 {[%clk
0:02:58.1]} 10. Be2 {[%clk 0:02:42]} 10... Na5 {[%clk 0:02:56.5]} 11. c5 {[%clk
0:02:40.7]} 11... Nd5 {[%clk 0:02:32.1]} 12. Bd2 {[%clk 0:02:39.7]} 12... Bxc3
{[%clk 0:02:21.1]} 13. bxc3 {[%clk 0:02:38.2]} 13... c6 {[%clk 0:02:16.4]} 14.
O-O {[%clk 0:02:36.5]} 14... O-O {[%clk 0:02:09.6]} 15. c4 {[%clk 0:02:34.2]}
15... Ne7 {[%clk 0:02:07.7]} 16. Qe1 {[%clk 0:02:33.9]} 16... b6 {[%clk
0:02:04.8]} 17. cxb6 {[%clk 0:02:26.3]} 17... axb6 {[%clk 0:02:03]} 18. Qg3
{[%clk 0:02:25.9]} 18... Bg6 {[%clk 0:01:48.9]} 19. Bc3 {[%clk 0:02:18.1]} 19...
Qd7 {[%clk 0:01:33.8]} 20. Rfe1 {[%clk 0:01:59.6]} 20... b5 {[%clk 0:01:30.3]}
21. cxb5 {[%clk 0:01:57.4]} 21... cxb5 {[%clk 0:01:30.3]} 22. Bb4 {[%clk
0:01:58.2]} 22... Nf5 {[%clk 0:01:19.3]} 23. Qf2 {[%clk 0:01:56.6]} 23... Rfc8
{[%clk 0:01:11.1]} 24. Rec1 {[%clk 0:01:54.4]} 24... Nc4 {[%clk 0:01:09]} 25. a4
{[%clk 0:01:53]} 25... Nfe3 {[%clk 0:00:58.1]} 26. Bc5 {[%clk 0:01:48]} 26...
Nc2 {[%clk 0:00:42.5]} 27. Ra2 {[%clk 0:01:44.2]} 27... N2e3 {[%clk 0:00:33.2]}
28. Bxc4 {[%clk 0:01:40.4]} 28... Nxc4 {[%clk 0:00:32.3]} 29. axb5 {[%clk
0:01:41.3]} 29... Qxb5 {[%clk 0:00:28.5]} 30. Rxa8 {[%clk 0:01:39.1]} 30... Rxa8
{[%clk 0:00:29.4]} 31. Qf1 {[%clk 0:01:26.8]} 31... Qb2 {[%clk 0:00:04.6]} 32.
Rxc4 {[%clk 0:01:22.6]} 32... Ra2 {[%clk 0:00:04.3]} 33. Rb4 {[%clk 0:01:21.4]}
1-0

[Event "*** Titled Tuesday Blitz"]
[Site "Chess.com"]
[Date "2020.03.03"]
[Round "2"]
[White "bgfbfbgfbgfgf"]
[Black "GadimbayliA"]
[Result "0-1"]
[WhiteElo "2638"]
[BlackElo "2920"]
[TimeControl "180+1"]
[EndTime "9:17:41 PST"]
[Termination "GadimbayliA won by resignation"]

1. e4 {[%clk 0:03:00.9]} 1... e5 {[%clk 0:02:50]} 2. Nf3 {[%clk 0:03:00.3]} 2...
Nf6 {[%clk 0:02:50.4]} 3. Nc3 {[%clk 0:02:59.5]} 3... Bb4 {[%clk 0:02:49.5]} 4.
Bc4 {[%clk 0:02:51.4]} 4... O-O {[%clk 0:02:49]} 5. O-O {[%clk 0:02:46.8]} 5...
Nc6 {[%clk 0:02:38.2]} 6. d3 {[%clk 0:02:42.8]} 6... d6 {[%clk 0:02:37.6]} 7. a3
{[%clk 0:02:40.5]} 7... Bxc3 {[%clk 0:02:24.2]} 8. bxc3 {[%clk 0:02:41.2]} 8...
Be6 {[%clk 0:02:25.1]} 9. Ba2 {[%clk 0:02:09.3]} 9... Bxa2 {[%clk 0:02:16.6]}
10. Rxa2 {[%clk 0:02:09]} 10... d5 {[%clk 0:02:17]} 11. exd5 {[%clk 0:02:04.5]}
11... Nxd5 {[%clk 0:02:12]} 12. Bb2 {[%clk 0:02:03.9]} 12... Re8 {[%clk
0:02:05.2]} 13. Re1 {[%clk 0:02:02]} 13... Qd6 {[%clk 0:02:01]} 14. c4 {[%clk
0:01:58]} 14... Nf4 {[%clk 0:02:00.3]} 15. Ra1 {[%clk 0:01:57.7]} 15... Rad8
{[%clk 0:01:58.9]} 16. Rb1 {[%clk 0:01:31.9]} 16... e4 {[%clk 0:01:55.9]} 17.
dxe4 {[%clk 0:01:28.1]} 17... Qg6 {[%clk 0:01:55.7]} 18. Nh4 {[%clk 0:01:16.9]}
18... Rxd1 {[%clk 0:01:55.1]} 19. Nxg6 {[%clk 0:01:15.9]} 19... Rxe1+ {[%clk
0:01:47.8]} 20. Rxe1 {[%clk 0:01:13.9]} 20... hxg6 {[%clk 0:01:48.4]} 21. g3
{[%clk 0:01:12.6]} 21... Ne6 {[%clk 0:01:48.6]} 22. h4 {[%clk 0:01:10.5]} 22...
Ned4 {[%clk 0:01:46.5]} 23. Kg2 {[%clk 0:01:08.2]} 23... Nxc2 {[%clk 0:01:43.7]}
24. Rd1 {[%clk 0:01:08.6]} 24... Rd8 {[%clk 0:01:43.3]} 25. Rc1 {[%clk
0:01:07.6]} 25... N2d4 {[%clk 0:01:39.3]} 26. Rb1 {[%clk 0:01:07.4]} 26... b6
{[%clk 0:01:37.8]} 27. Rh1 {[%clk 0:01:06.9]} 27... Ne6 {[%clk 0:01:35.4]} 28.
h5 {[%clk 0:01:06.5]} 28... gxh5 {[%clk 0:01:36.3]} 29. Rxh5 {[%clk 0:01:06.3]}
29... Rd2 {[%clk 0:01:36.9]} 30. Ba1 {[%clk 0:01:06.2]} 30... Ra2 {[%clk
0:01:36.6]} 31. Bc3 {[%clk 0:00:58.1]} 31... Rxa3 {[%clk 0:01:36.7]} 32. Bd2
{[%clk 0:00:59]} 32... Rd3 {[%clk 0:01:32.3]} 33. Be3 {[%clk 0:00:59]} 33... a5
{[%clk 0:01:31.9]} 34. Rd5 {[%clk 0:00:57.7]} 34... Nb4 {[%clk 0:01:29.7]} 35.
Rb5 {[%clk 0:00:54.9]} 35... Nd4 {[%clk 0:01:24.7]} 36. Re5 {[%clk 0:00:51.9]}
36... Ne6 {[%clk 0:01:16.4]} 37. Rb5 {[%clk 0:00:51.7]} 37... Rxe3 {[%clk
0:01:01.7]} 38. fxe3 {[%clk 0:00:51.1]} 38... Nc5 {[%clk 0:01:02]} 39. Kf3
{[%clk 0:00:49.6]} 39... Kf8 {[%clk 0:01:02.4]} 40. Kf4 {[%clk 0:00:46]} 40...
Ke7 {[%clk 0:01:02]} 41. g4 {[%clk 0:00:44.9]} 41... Ke6 {[%clk 0:00:57.7]} 42.
g5 {[%clk 0:00:43.6]} 42... g6 {[%clk 0:00:57.7]} 0-1

[Event "*** Titled Tuesday Blitz"]
[Site "Chess.com"]
[Date "2020.03.03"]
[Round "2"]
[White "afgano29"]
[Black "almaguerjm"]
[Result "1-0"]
[WhiteElo "2715"]
[BlackElo "2340"]
[TimeControl "180+1"]
[EndTime "9:17:42 PST"]
[Termination "afgano29 won by resignation"]

1. d4 {[%clk 0:03:00.9]} 1... Nf6 {[%clk 0:02:57.6]} 2. c4 {[%clk 0:03:00.5]}
2... d6 {[%clk 0:02:55.9]} 3. Nf3 {[%clk 0:03:00.3]} 3... Nbd7 {[%clk 0:02:56]}
4. Nc3 {[%clk 0:02:59.8]} 4... g6 {[%clk 0:02:55.9]} 5. e4 {[%clk 0:02:59.9]}
5... Bg7 {[%clk 0:02:56]} 6. Be2 {[%clk 0:03:00.4]} 6... O-O {[%clk 0:02:56.1]}
7. O-O {[%clk 0:03:01]} 7... e5 {[%clk 0:02:56.5]} 8. Be3 {[%clk 0:03:01.1]}
8... Ng4 {[%clk 0:02:54.8]} 9. Bg5 {[%clk 0:03:00.6]} 9... f6 {[%clk 0:02:54.7]}
10. Bh4 {[%clk 0:02:58.3]} 10... g5 {[%clk 0:02:52.2]} 11. Bg3 {[%clk
0:02:57.5]} 11... Nh6 {[%clk 0:02:49.8]} 12. d5 {[%clk 0:02:50.6]} 12... f5
{[%clk 0:02:47]} 13. exf5 {[%clk 0:02:50.6]} 13... Nxf5 {[%clk 0:02:47.6]} 14.
Ne4 {[%clk 0:02:45.6]} 14... h6 {[%clk 0:02:46]} 15. Bd3 {[%clk 0:02:43.5]}
15... Rf7 {[%clk 0:02:31.7]} 16. Qc2 {[%clk 0:02:39]} 16... Nf8 {[%clk
0:02:28.5]} 17. c5 {[%clk 0:02:17.2]} 17... g4 {[%clk 0:02:22.7]} 18. Nfd2
{[%clk 0:02:13.7]} 18... Nd4 {[%clk 0:02:22.4]} 19. Qc3 {[%clk 0:02:10.1]} 19...
h5 {[%clk 0:02:22.6]} 20. f3 {[%clk 0:01:58.4]} 20... h4 {[%clk 0:02:17.8]} 21.
Be1 {[%clk 0:01:54.6]} 21... h3 {[%clk 0:02:12]} 22. fxg4 {[%clk 0:01:50.9]}
22... Rxf1+ {[%clk 0:02:00.1]} 23. Bxf1 {[%clk 0:01:51.8]} 23... hxg2 {[%clk
0:02:00.3]} 24. Kxg2 {[%clk 0:01:49.3]} 24... Bxg4 {[%clk 0:01:55.2]} 25. Qg3
{[%clk 0:01:44.8]} 25... Be2 {[%clk 0:01:42.2]} 26. Bf2 {[%clk 0:01:17.5]} 26...
Bh5 {[%clk 0:01:18.7]} 27. cxd6 {[%clk 0:01:10.4]} 27... cxd6 {[%clk 0:01:16.7]}
28. Bd3 {[%clk 0:01:10.4]} 28... Nh7 {[%clk 0:01:10]} 29. Rg1 {[%clk 0:01:08]}
29... Nf6 {[%clk 0:01:02.4]} 30. Kh1 {[%clk 0:01:05.8]} 30... Qe7 {[%clk
0:00:57]} 31. Qxg7+ {[%clk 0:00:59.6]} 31... Qxg7 {[%clk 0:00:56.4]} 32. Nxf6+
{[%clk 0:00:59.7]} 32... Kf7 {[%clk 0:00:46.1]} 33. Rxg7+ {[%clk 0:01:00.1]}
33... Kxg7 {[%clk 0:00:34.2]} 34. Nxh5+ {[%clk 0:01:00.2]} 34... Kh6 {[%clk
0:00:33.9]} 35. Bxd4 {[%clk 0:00:58.8]} 1-0

[Event "*** Titled Tuesday Blitz"]
[Site "Chess.com"]
[Date "2020.03.03"]
[Round "2"]
[White "Touching3200"]
[Black "Roman_Ovetchkin"]
[Result "1-0"]
[WhiteElo "2345"]
[BlackElo "2642"]
[TimeControl "180+1"]
[EndTime "9:17:51 PST"]
[Termination "Touching3200 won by resignation"]

1. e4 {[%clk 0:03:00.9]} 1... c6 {[%clk 0:02:59.8]} 2. d4 {[%clk 0:02:58.5]}
2... d5 {[%clk 0:03:00.7]} 3. e5 {[%clk 0:02:56.3]} 3... Bf5 {[%clk 0:03:00.2]}
4. Nf3 {[%clk 0:02:55.5]} 4... e6 {[%clk 0:03:00.2]} 5. Be2 {[%clk 0:02:53]}
5... Nd7 {[%clk 0:02:59.9]} 6. Be3 {[%clk 0:02:47.6]} 6... Bg6 {[%clk 0:02:59]}
7. Nbd2 {[%clk 0:02:43.2]} 7... Ne7 {[%clk 0:02:58.4]} 8. Nh4 {[%clk 0:02:39.4]}
8... Nf5 {[%clk 0:02:50.4]} 9. Nxf5 {[%clk 0:02:37.5]} 9... Bxf5 {[%clk
0:02:51.3]} 10. O-O {[%clk 0:02:32.6]} 10... Be7 {[%clk 0:02:41.5]} 11. f4
{[%clk 0:02:32.1]} 11... Bg6 {[%clk 0:02:31.8]} 12. Bd3 {[%clk 0:02:26.2]} 12...
c5 {[%clk 0:02:25.6]} 13. Nf3 {[%clk 0:02:21.9]} 13... cxd4 {[%clk 0:02:10.2]}
14. Nxd4 {[%clk 0:02:17.6]} 14... Bxd3 {[%clk 0:02:08.6]} 15. cxd3 {[%clk
0:02:10.8]} 15... O-O {[%clk 0:02:04.3]} 16. a3 {[%clk 0:02:09.1]} 16... Bc5
{[%clk 0:01:54.6]} 17. b4 {[%clk 0:02:05.7]} 17... Bb6 {[%clk 0:01:53.4]} 18.
Qe2 {[%clk 0:02:00.6]} 18... Rc8 {[%clk 0:01:51.9]} 19. Nb5 {[%clk 0:01:57.4]}
19... Rc6 {[%clk 0:01:07.2]} 20. Rac1 {[%clk 0:01:54]} 20... Qb8 {[%clk
0:00:58.7]} 21. Nd6 {[%clk 0:01:47.7]} 21... Bc7 {[%clk 0:00:54.5]} 22. Rxc6
{[%clk 0:01:43.8]} 22... bxc6 {[%clk 0:00:54.5]} 23. Bc5 {[%clk 0:01:38.5]}
23... Nxc5 {[%clk 0:00:50.1]} 24. bxc5 {[%clk 0:01:37.9]} 24... Qb3 {[%clk
0:00:45.6]} 25. f5 {[%clk 0:01:33.8]} 25... Qc3 {[%clk 0:00:41.8]} 26. fxe6
{[%clk 0:01:28.3]} 26... Qxc5+ {[%clk 0:00:41]} 27. d4 {[%clk 0:01:24.9]} 27...
Qxd4+ {[%clk 0:00:28.9]} 28. Kh1 {[%clk 0:01:21.5]} 28... Qh4 {[%clk 0:00:10.2]}
29. exf7+ {[%clk 0:01:18.7]} 29... Kh8 {[%clk 0:00:09.8]} 30. Nf5 {[%clk
0:01:16.8]} 30... Qg5 {[%clk 0:00:08.5]} 31. h4 {[%clk 0:01:13.2]} 31... Qd8
{[%clk 0:00:06.7]} 32. e6 {[%clk 0:01:10.1]} 1-0

[Event "*** Titled Tuesday Blitz"]
[Site "Chess.com"]
[Date "2020.03.03"]
[Round "2"]
[White "WeAintSurePal"]
[Black "Atanejhad"]
[Result "0-1"]
[WhiteElo "2321"]
[BlackElo "2614"]
[TimeControl "180+1"]
[EndTime "9:17:51 PST"]
[Termination "Atanejhad won by resignation"]

1. d4 {[%clk 0:03:00.9]} 1... Nf6 {[%clk 0:02:58.9]} 2. c4 {[%clk 0:03:00.5]}
2... g6 {[%clk 0:02:59.4]} 3. Nc3 {[%clk 0:02:59]} 3... Bg7 {[%clk 0:02:59.9]}
4. e4 {[%clk 0:02:56.5]} 4... d6 {[%clk 0:03:00.1]} 5. f3 {[%clk 0:02:55.2]}
5... O-O {[%clk 0:02:59.8]} 6. Nge2 {[%clk 0:02:54.1]} 6... c5 {[%clk
0:02:59.6]} 7. Be3 {[%clk 0:02:53.2]} 7... cxd4 {[%clk 0:02:58.8]} 8. Nxd4
{[%clk 0:02:54.1]} 8... Nc6 {[%clk 0:02:59.4]} 9. Be2 {[%clk 0:02:50.5]} 9...
Bd7 {[%clk 0:02:59.7]} 10. O-O {[%clk 0:02:49]} 10... Rc8 {[%clk 0:03:00]} 11.
Rc1 {[%clk 0:02:48.7]} 11... Qc7 {[%clk 0:02:58.2]} 12. Nd5 {[%clk 0:02:44.4]}
12... Qd8 {[%clk 0:02:56.4]} 13. Qd2 {[%clk 0:02:43.8]} 13... Ne5 {[%clk
0:02:54.4]} 14. b3 {[%clk 0:02:42.9]} 14... a6 {[%clk 0:02:53.2]} 15. a4 {[%clk
0:02:42.9]} 15... e6 {[%clk 0:02:48.3]} 16. Nxf6+ {[%clk 0:02:41.9]} 16... Bxf6
{[%clk 0:02:49.2]} 17. Nc2 {[%clk 0:02:37.3]} 17... Be7 {[%clk 0:02:46]} 18.
Rfd1 {[%clk 0:02:37]} 18... Qc7 {[%clk 0:02:41.7]} 19. a5 {[%clk 0:02:35.3]}
19... Qb8 {[%clk 0:02:35.6]} 20. Ne1 {[%clk 0:02:29.3]} 20... Nc6 {[%clk
0:02:31.2]} 21. Bf4 {[%clk 0:02:23.5]} 21... e5 {[%clk 0:02:30.5]} 22. Be3
{[%clk 0:02:22.9]} 22... Be6 {[%clk 0:02:30.8]} 23. Bb6 {[%clk 0:02:16]} 23...
f5 {[%clk 0:02:28.6]} 24. Bd3 {[%clk 0:02:09.4]} 24... f4 {[%clk 0:02:26.9]} 25.
Nc2 {[%clk 0:02:09.3]} 25... Rce8 {[%clk 0:02:26.8]} 26. Bf1 {[%clk 0:02:00.9]}
26... Qc8 {[%clk 0:02:24.9]} 27. b4 {[%clk 0:01:57.3]} 27... Nb8 {[%clk
0:02:23.2]} 28. b5 {[%clk 0:01:51.8]} 28... Nd7 {[%clk 0:02:22.1]} 29. Bf2
{[%clk 0:01:49.4]} 29... Nc5 {[%clk 0:02:20.2]} 30. Nb4 {[%clk 0:01:47.4]} 30...
Nb3 {[%clk 0:02:15.5]} 31. Qa2 {[%clk 0:01:41.8]} 31... Nxc1 {[%clk 0:02:15.2]}
32. Rxc1 {[%clk 0:01:41.8]} 32... Kg7 {[%clk 0:02:13.6]} 33. Qb2 {[%clk
0:01:36.1]} 33... Qc7 {[%clk 0:02:09.3]} 34. Bb6 {[%clk 0:01:33.6]} 34... Qd7
{[%clk 0:02:09]} 35. Nd5 {[%clk 0:01:32.5]} 35... Bxd5 {[%clk 0:02:08]} 36. exd5
{[%clk 0:01:29.2]} 36... Rc8 {[%clk 0:02:08.2]} 37. c5 {[%clk 0:01:24.3]} 37...
dxc5 {[%clk 0:02:05]} 38. bxa6 {[%clk 0:01:16.1]} 38... bxa6 {[%clk 0:02:05.9]}
39. Qxe5+ {[%clk 0:01:11.2]} 39... Bf6 {[%clk 0:02:02.5]} 40. Qe6 {[%clk
0:01:11.1]} 40... Bd4+ {[%clk 0:02:01.5]} 41. Kh1 {[%clk 0:01:10.8]} 41... Qxe6
{[%clk 0:01:59]} 42. dxe6 {[%clk 0:01:11.7]} 42... Rc6 {[%clk 0:01:58.4]} 43.
Bc4 {[%clk 0:01:04.6]} 43... Re8 {[%clk 0:01:57.2]} 44. h3 {[%clk 0:01:04.3]}
44... Kf6 {[%clk 0:01:54.6]} 45. Bd5 {[%clk 0:01:00.7]} 45... Rd6 {[%clk
0:01:53.4]} 46. Bc4 {[%clk 0:01:00.1]} 46... g5 {[%clk 0:01:48.4]} 47. Bb3
{[%clk 0:00:47.3]} 47... Rc8 {[%clk 0:01:44.1]} 48. Bc4 {[%clk 0:00:43.9]} 48...
Re8 {[%clk 0:01:42.6]} 49. Bb3 {[%clk 0:00:43.5]} 49... Be3 {[%clk 0:01:38.8]}
50. Bc4 {[%clk 0:00:36.8]} 50... Bxc1 {[%clk 0:01:35.9]} 0-1

[Event "*** Titled Tuesday Blitz"]
[Site "Chess.com"]
[Date "2020.03.03"]
[Round "2"]
[White "doons21"]
[Black "Endgamegenius"]
[Result "1-0"]
[WhiteElo "2589"]
[BlackElo "2314"]
[TimeControl "180+1"]
[EndTime "9:17:51 PST"]
[Termination "doons21 won by resignation"]

1. d4 {[%clk 0:03:00.9]} 1... Nf6 {[%clk 0:02:47.1]} 2. c4 {[%clk 0:03:01.2]}
2... g6 {[%clk 0:02:36.6]} 3. Nc3 {[%clk 0:03:00.6]} 3... Bg7 {[%clk 0:02:31.7]}
4. e4 {[%clk 0:03:01]} 4... d6 {[%clk 0:02:31]} 5. Nf3 {[%clk 0:02:58.3]} 5...
O-O {[%clk 0:02:28.3]} 6. h3 {[%clk 0:02:58.6]} 6... e5 {[%clk 0:02:25.4]} 7. d5
{[%clk 0:02:58.7]} 7... a5 {[%clk 0:02:23.2]} 8. Be3 {[%clk 0:02:57.9]} 8... Na6
{[%clk 0:02:23.4]} 9. g4 {[%clk 0:02:57.2]} 9... Nd7 {[%clk 0:02:22.6]} 10. h4
{[%clk 0:02:53.1]} 10... Ndc5 {[%clk 0:02:19.9]} 11. Rg1 {[%clk 0:02:44.3]}
11... Bd7 {[%clk 0:02:10.5]} 12. Be2 {[%clk 0:02:35.9]} 12... Rb8 {[%clk
0:01:55]} 13. h5 {[%clk 0:02:33.4]} 13... Qc8 {[%clk 0:01:37.1]} 14. Nd2 {[%clk
0:02:27.8]} 14... Nb4 {[%clk 0:01:34.8]} 15. Qb1 {[%clk 0:02:24.3]} 15... Qd8
{[%clk 0:01:31.9]} 16. a3 {[%clk 0:02:23.6]} 16... Qh4 {[%clk 0:01:15.3]} 17.
axb4 {[%clk 0:02:13.8]} 17... axb4 {[%clk 0:01:12.1]} 18. Nb5 {[%clk 0:02:04.7]}
18... Kh8 {[%clk 0:00:56.1]} 19. Nf3 {[%clk 0:01:52.6]} 19... Qh3 {[%clk
0:00:54.6]} 20. Bxc5 {[%clk 0:01:39.2]} 20... dxc5 {[%clk 0:00:50.2]} 21. Rg3
{[%clk 0:01:35.6]} 21... Qh1+ {[%clk 0:00:48.2]} 22. Kd2 {[%clk 0:01:36.1]}
22... Qxb1 {[%clk 0:00:45.8]} 23. Rxb1 {[%clk 0:01:37]} 23... f5 {[%clk
0:00:43.5]} 24. gxf5 {[%clk 0:01:30.5]} 24... gxf5 {[%clk 0:00:42.2]} 25. Rbg1
{[%clk 0:01:23.2]} 25... Bh6+ {[%clk 0:00:40]} 26. Ng5 {[%clk 0:01:18.8]} 26...
fxe4 {[%clk 0:00:32.8]} 27. Ke1 {[%clk 0:01:19.1]} 27... Rf4 {[%clk 0:00:29.4]}
28. Nxc7 {[%clk 0:01:16.2]} 28... Rc8 {[%clk 0:00:24.6]} 29. Nce6 {[%clk
0:01:15.9]} 29... Rf6 {[%clk 0:00:06.7]} 30. Nxe4 {[%clk 0:01:14.7]} 1-0

[Event "*** Titled Tuesday Blitz"]
[Site "Chess.com"]
[Date "2020.03.03"]
[Round "2"]
[White "Eliclax"]
[Black "AlexTruskavetsky"]
[Result "0-1"]
[WhiteElo "1881"]
[BlackElo "2405"]
[TimeControl "180+1"]
[EndTime "9:17:53 PST"]
[Termination "AlexTruskavetsky won by checkmate"]

1. d4 {[%clk 0:02:58.3]} 1... Nf6 {[%clk 0:02:48.8]} 2. c4 {[%clk 0:02:58.2]}
2... e6 {[%clk 0:02:45.9]} 3. Nc3 {[%clk 0:02:58.1]} 3... d5 {[%clk 0:02:43.2]}
4. Bg5 {[%clk 0:02:57.1]} 4... Bb4 {[%clk 0:02:40.1]} 5. Qc2 {[%clk 0:02:56.1]}
5... h6 {[%clk 0:02:34.2]} 6. Bh4 {[%clk 0:02:54.7]} 6... Nc6 {[%clk 0:02:30.5]}
7. e3 {[%clk 0:02:53.4]} 7... O-O {[%clk 0:02:26.9]} 8. Nf3 {[%clk 0:02:50.3]}
8... Re8 {[%clk 0:02:24.5]} 9. Bg3 {[%clk 0:02:42.5]} 9... Ne4 {[%clk
0:02:21.7]} 10. a3 {[%clk 0:02:41.5]} 10... Bxc3+ {[%clk 0:02:13.2]} 11. bxc3
{[%clk 0:02:42.4]} 11... Nxg3 {[%clk 0:02:03.4]} 12. hxg3 {[%clk 0:02:43.3]}
12... e5 {[%clk 0:02:00]} 13. dxe5 {[%clk 0:02:29.2]} 13... Nxe5 {[%clk
0:01:57.3]} 14. Nxe5 {[%clk 0:02:29.7]} 14... Rxe5 {[%clk 0:01:56.6]} 15. cxd5
{[%clk 0:02:25.3]} 15... Qxd5 {[%clk 0:01:52]} 16. Rd1 {[%clk 0:02:24.8]} 16...
Qc6 {[%clk 0:01:47.6]} 17. Rd8+ {[%clk 0:02:13.6]} 17... Re8 {[%clk 0:01:45.4]}
18. Rxe8+ {[%clk 0:01:55.2]} 18... Qxe8 {[%clk 0:01:46.2]} 19. Rh4 {[%clk
0:01:52.2]} 19... Be6 {[%clk 0:01:43.8]} 20. Rd4 {[%clk 0:01:49.3]} 20... Qc6
{[%clk 0:01:42.6]} 21. f3 {[%clk 0:01:34.4]} 21... Re8 {[%clk 0:01:39.3]} 22. a4
{[%clk 0:01:30.5]} 22... a6 {[%clk 0:01:34.1]} 23. Kf2 {[%clk 0:01:23.6]} 23...
Qc5 {[%clk 0:01:31.7]} 24. Qd2 {[%clk 0:01:14.9]} 24... Qe7 {[%clk 0:01:22.7]}
25. Rb4 {[%clk 0:01:12]} 25... c5 {[%clk 0:01:19.9]} 26. Re4 {[%clk 0:01:06.7]}
26... Rd8 {[%clk 0:01:17.4]} 27. Qb2 {[%clk 0:00:44.3]} 27... Qd7 {[%clk
0:01:15.8]} 28. Bc4 {[%clk 0:00:32.1]} 28... Qd1 {[%clk 0:01:13.1]} 29. Be2
{[%clk 0:00:02.7]} 29... Rd2 {[%clk 0:01:11.2]} 30. Qxb7 {[%clk 0:00:01.6]}
30... Rxe2# {[%clk 0:01:09.6]} 0-1

[Event "*** Titled Tuesday Blitz"]
[Site "Chess.com"]
[Date "2020.03.03"]
[Round "2"]
[White "davserr65"]
[Black "KacperPolOK"]
[Result "0-1"]
[WhiteElo "2026"]
[BlackElo "2425"]
[TimeControl "180+1"]
[EndTime "9:17:57 PST"]
[Termination "KacperPolOK won by resignation"]

1. Nf3 {[%clk 0:03:00.9]} 1... e6 {[%clk 0:02:58.3]} 2. c4 {[%clk 0:03:00.7]}
2... f5 {[%clk 0:02:56.2]} 3. g3 {[%clk 0:03:00.8]} 3... Nf6 {[%clk 0:02:55.7]}
4. Bg2 {[%clk 0:03:01.1]} 4... d5 {[%clk 0:02:52.9]} 5. O-O {[%clk 0:03:01.1]}
5... Be7 {[%clk 0:02:50.5]} 6. d3 {[%clk 0:03:01.3]} 6... O-O {[%clk 0:02:49.9]}
7. Nc3 {[%clk 0:03:01.5]} 7... d4 {[%clk 0:02:45.1]} 8. Nb1 {[%clk 0:02:57.8]}
8... c5 {[%clk 0:02:43.6]} 9. b4 {[%clk 0:02:57.9]} 9... Nc6 {[%clk 0:02:39.7]}
10. b5 {[%clk 0:02:55.3]} 10... Nb8 {[%clk 0:02:38.8]} 11. Nbd2 {[%clk
0:02:51.8]} 11... Nbd7 {[%clk 0:02:37.6]} 12. Nb3 {[%clk 0:02:51.7]} 12... e5
{[%clk 0:02:35.3]} 13. a4 {[%clk 0:02:49.4]} 13... Bd6 {[%clk 0:02:33.9]} 14. a5
{[%clk 0:02:44.7]} 14... Qe7 {[%clk 0:02:26.8]} 15. a6 {[%clk 0:02:41.1]} 15...
e4 {[%clk 0:02:20.1]} 16. axb7 {[%clk 0:02:33.6]} 16... Bxb7 {[%clk 0:02:18.7]}
17. Ng5 {[%clk 0:02:30.8]} 17... h6 {[%clk 0:02:15]} 18. Nh3 {[%clk 0:02:30.5]}
18... g5 {[%clk 0:02:15.4]} 19. Na5 {[%clk 0:02:30.5]} 19... Nb6 {[%clk
0:02:14.3]} 20. Nxb7 {[%clk 0:02:29.5]} 20... Qxb7 {[%clk 0:02:13.6]} 21. Bd2
{[%clk 0:02:24.4]} 21... Kh7 {[%clk 0:02:01.2]} 22. Qc1 {[%clk 0:02:23.6]} 22...
Rf7 {[%clk 0:01:49.8]} 23. Bxg5 {[%clk 0:02:18.8]} 23... hxg5 {[%clk 0:01:47.7]}
24. Nxg5+ {[%clk 0:02:19.1]} 24... Kg7 {[%clk 0:01:47.6]} 25. Nxf7 {[%clk
0:02:19]} 25... Kxf7 {[%clk 0:01:48.5]} 26. Ra6 {[%clk 0:02:12.4]} 26... Rh8
{[%clk 0:01:43]} 27. Qa3 {[%clk 0:02:10]} 27... Nc8 {[%clk 0:01:41.6]} 28. Ra1
{[%clk 0:02:07.7]} 28... Kg6 {[%clk 0:01:40.6]} 29. Rc6 {[%clk 0:02:01.3]} 29...
Qh7 {[%clk 0:01:35.3]} 30. h3 {[%clk 0:01:58.7]} 30... e3 {[%clk 0:01:35.7]} 31.
fxe3 {[%clk 0:01:51.5]} 31... Bxg3 {[%clk 0:01:34.5]} 32. exd4 {[%clk
0:01:48.1]} 32... Qh6 {[%clk 0:01:07.8]} 33. Rxf6+ {[%clk 0:01:21.2]} 33... Kxf6
{[%clk 0:01:01.2]} 34. Qxc5 {[%clk 0:01:19.1]} 34... Qe3+ {[%clk 0:00:56.9]} 35.
Kh1 {[%clk 0:01:19.1]} 35... Qxe2 {[%clk 0:00:52.3]} 36. Ra6+ {[%clk 0:01:13.6]}
36... Kg5 {[%clk 0:00:51.3]} 0-1